[Event "*** Titled Tuesday Blitz"]
[Site "Chess.com"]
[Date "2020.11.03"]
[Round "6"]
[White "Sharpchess22"]
[Black "GameOverBro"]
[Result "1-0"]
[WhiteElo "2824"]
[BlackElo "2529"]
[TimeControl "180+1"]
[EndTime "11:10:42 PST"]
[Termination "Sharpchess22 won on time"]

1. d4 {[%clk 0:03:00.9]} 1... d6 {[%clk 0:02:59.9]} 2. Nf3 {[%clk 0:02:59.8]}
2... Nf6 {[%clk 0:02:59.9]} 3. Bf4 {[%clk 0:02:59.3]} 3... Nbd7 {[%clk
0:02:59.7]} 4. h3 {[%clk 0:02:57]} 4... c5 {[%clk 0:02:58]} 5. c3 {[%clk
0:02:56.4]} 5... g6 {[%clk 0:02:57.9]} 6. e3 {[%clk 0:02:55.8]} 6... Bg7 {[%clk
0:02:58.3]} 7. Be2 {[%clk 0:02:55.2]} 7... O-O {[%clk 0:02:57.9]} 8. O-O {[%clk
0:02:55.4]} 8... b6 {[%clk 0:02:58.4]} 9. a4 {[%clk 0:02:55.2]} 9... a6 {[%clk
0:02:57.8]} 10. Na3 {[%clk 0:02:54]} 10... Bb7 {[%clk 0:02:57.3]} 11. Bh2 {[%clk
0:02:49.6]} 11... Ne4 {[%clk 0:02:52.6]} 12. Re1 {[%clk 0:02:41]} 12... Ndf6
{[%clk 0:02:51.4]} 13. Qb3 {[%clk 0:02:38.1]} 13... Qc7 {[%clk 0:02:44.3]} 14.
Nc4 {[%clk 0:02:35.5]} 14... Nd7 {[%clk 0:02:33.1]} 15. Ncd2 {[%clk 0:02:33.1]}
15... Ndf6 {[%clk 0:02:25.6]} 16. Bd3 {[%clk 0:02:31.6]} 16... Rfb8 {[%clk
0:02:17.6]} 17. Qc2 {[%clk 0:02:25.8]} 17... Qc6 {[%clk 0:02:10.5]} 18. c4
{[%clk 0:02:19.6]} 18... Nxd2 {[%clk 0:02:06.8]} 19. Qxd2 {[%clk 0:02:19.3]}
19... Ne4 {[%clk 0:01:52.7]} 20. Qd1 {[%clk 0:02:16.1]} 20... Ng5 {[%clk
0:01:47.6]} 21. Be2 {[%clk 0:02:15.4]} 21... Nxf3+ {[%clk 0:01:44.4]} 22. Bxf3
{[%clk 0:02:15.1]} 22... Qc7 {[%clk 0:01:45]} 23. d5 {[%clk 0:02:14.5]} 23...
Bxb2 {[%clk 0:01:36.2]} 24. Rb1 {[%clk 0:02:14.6]} 24... Bf6 {[%clk 0:01:29.7]}
25. e4 {[%clk 0:02:13.7]} 25... Bc8 {[%clk 0:01:29.5]} 26. Be2 {[%clk
0:02:09.8]} 26... Bd7 {[%clk 0:01:29.4]} 27. f4 {[%clk 0:02:08.9]} 27... Bd4+
{[%clk 0:01:28.5]} 28. Kh1 {[%clk 0:02:07.8]} 28... e6 {[%clk 0:01:26]} 29. dxe6
{[%clk 0:01:50.1]} 29... fxe6 {[%clk 0:01:20.7]} 30. Bd3 {[%clk 0:01:46.8]}
30... Rf8 {[%clk 0:01:17.6]} 31. Rf1 {[%clk 0:01:43]} 31... Rab8 {[%clk
0:00:57.7]} 32. Qg4 {[%clk 0:01:40.6]} 32... Kh8 {[%clk 0:00:52.7]} 33. Qh4
{[%clk 0:01:33.4]} 33... Bf6 {[%clk 0:00:48.6]} 34. Qg4 {[%clk 0:01:30.9]} 34...
e5 {[%clk 0:00:42.6]} 35. f5 {[%clk 0:01:21.8]} 35... gxf5 {[%clk 0:00:42.1]}
36. exf5 {[%clk 0:01:21.3]} 36... Rg8 {[%clk 0:00:42]} 37. Qf3 {[%clk
0:01:19.1]} 37... Bxa4 {[%clk 0:00:40.9]} 38. Be4 {[%clk 0:01:19.1]} 38... Rbc8
{[%clk 0:00:33.3]} 39. Ra1 {[%clk 0:01:14.8]} 39... b5 {[%clk 0:00:30.3]} 40.
Bd5 {[%clk 0:01:13.2]} 40... Rg7 {[%clk 0:00:29.8]} 41. g4 {[%clk 0:01:12.8]}
41... Qe7 {[%clk 0:00:25.5]} 42. Rfe1 {[%clk 0:01:10.6]} 42... h6 {[%clk
0:00:22.4]} 43. Qe3 {[%clk 0:01:08]} 43... Bg5 {[%clk 0:00:22.6]} 44. Qc3 {[%clk
0:01:06]} 44... b4 {[%clk 0:00:21.3]} 45. Qd3 {[%clk 0:01:03]} 45... Bc6 {[%clk
0:00:21.6]} 46. Rxa6 {[%clk 0:01:02.1]} 46... Bxd5+ {[%clk 0:00:21.7]} 47. Qxd5
{[%clk 0:01:02.3]} 47... b3 {[%clk 0:00:20]} 48. Rb6 {[%clk 0:01:00.3]} 48...
Bh4 {[%clk 0:00:18.6]} 49. Re2 {[%clk 0:00:58.8]} 49... h5 {[%clk 0:00:18.6]}
50. Rxd6 {[%clk 0:00:55.7]} 50... hxg4 {[%clk 0:00:15.3]} 51. Bxe5 {[%clk
0:00:54.9]} 51... Qg5 {[%clk 0:00:07.4]} 52. Rg6 {[%clk 0:00:48.2]} 52... Qc1+
{[%clk 0:00:05.4]} 53. Kh2 {[%clk 0:00:46.4]} 53... g3+ {[%clk 0:00:04.9]} 54.
Kg2 {[%clk 0:00:45.6]} 54... Rg8 {[%clk 0:00:03]} 55. Qf7 {[%clk 0:00:38.1]}
55... b2 {[%clk 0:00:01]} 56. Bxg7+ {[%clk 0:00:36.1]} 1-0

[Event "*** Titled Tuesday Blitz"]
[Site "Chess.com"]
[Date "2020.11.03"]
[Round "6"]
[White "barriochess"]
[Black "Roza_Idrisova"]
[Result "1/2-1/2"]
[WhiteElo "2367"]
[BlackElo "2202"]
[TimeControl "180+1"]
[EndTime "11:10:45 PST"]
[Termination "Game drawn by repetition"]

1. d4 {[%clk 0:03:00.9]} 1... d5 {[%clk 0:02:59.5]} 2. c4 {[%clk 0:03:01.3]}
2... c6 {[%clk 0:03:00]} 3. Nf3 {[%clk 0:03:01]} 3... Nf6 {[%clk 0:03:00.2]} 4.
Nc3 {[%clk 0:03:01]} 4... a6 {[%clk 0:03:00.3]} 5. a4 {[%clk 0:03:00.2]} 5... e6
{[%clk 0:03:00]} 6. g3 {[%clk 0:02:59.4]} 6... a5 {[%clk 0:03:00.2]} 7. Bg2
{[%clk 0:02:59.5]} 7... Na6 {[%clk 0:03:00.7]} 8. O-O {[%clk 0:02:59.8]} 8...
Be7 {[%clk 0:03:01]} 9. Nd2 {[%clk 0:02:53.1]} 9... O-O {[%clk 0:03:00.6]} 10.
e4 {[%clk 0:02:53.1]} 10... dxe4 {[%clk 0:02:58.3]} 11. Ndxe4 {[%clk 0:02:52.5]}
11... Nb4 {[%clk 0:02:58.1]} 12. Bf4 {[%clk 0:02:46.3]} 12... Re8 {[%clk
0:02:53.7]} 13. h3 {[%clk 0:02:37.4]} 13... h6 {[%clk 0:02:51]} 14. Be3 {[%clk
0:02:35.8]} 14... Bf8 {[%clk 0:02:46.4]} 15. Qe2 {[%clk 0:02:35]} 15... Nxe4
{[%clk 0:02:43.2]} 16. Nxe4 {[%clk 0:02:33.3]} 16... e5 {[%clk 0:02:38.7]} 17.
dxe5 {[%clk 0:02:29.1]} 17... Rxe5 {[%clk 0:02:38.1]} 18. Rfd1 {[%clk
0:02:26.9]} 18... Qe8 {[%clk 0:02:31.3]} 19. Nd6 {[%clk 0:02:22.6]} 19... Bxd6
{[%clk 0:02:29.8]} 20. Rxd6 {[%clk 0:02:21.7]} 20... Bf5 {[%clk 0:02:28.2]} 21.
Qd2 {[%clk 0:02:09.7]} 21... Nc2 {[%clk 0:02:17.7]} 22. Re1 {[%clk 0:02:01.6]}
22... Nxe3 {[%clk 0:02:16.7]} 23. Rxe3 {[%clk 0:01:59]} 23... Rxe3 {[%clk
0:02:15.9]} 24. Qxe3 {[%clk 0:01:58.5]} 24... Qxe3 {[%clk 0:02:12.1]} 25. fxe3
{[%clk 0:01:58.1]} 25... Re8 {[%clk 0:02:11.5]} 26. Kf2 {[%clk 0:01:56.4]} 26...
Kf8 {[%clk 0:02:11.1]} 27. Rd4 {[%clk 0:01:50]} 27... Ke7 {[%clk 0:02:08.5]} 28.
e4 {[%clk 0:01:46.4]} 28... Be6 {[%clk 0:02:08.5]} 29. Ke3 {[%clk 0:01:44.4]}
29... c5 {[%clk 0:02:03.3]} 30. Rd2 {[%clk 0:01:39.9]} 30... b6 {[%clk
0:01:59.3]} 31. b3 {[%clk 0:01:39.6]} 31... f6 {[%clk 0:01:58.2]} 32. h4 {[%clk
0:01:29.6]} 32... Rd8 {[%clk 0:01:53.3]} 33. Rxd8 {[%clk 0:01:28.9]} 33... Kxd8
{[%clk 0:01:53.5]} 34. e5 {[%clk 0:01:27.9]} 34... Ke7 {[%clk 0:01:49.1]} 35.
Ke4 {[%clk 0:01:20.3]} 35... g5 {[%clk 0:01:43.4]} 36. exf6+ {[%clk 0:01:17.9]}
36... Kxf6 {[%clk 0:01:43.1]} 37. hxg5+ {[%clk 0:01:18.3]} 37... hxg5 {[%clk
0:01:42.9]} 38. Bf3 {[%clk 0:01:03.7]} 38... Bc8 {[%clk 0:01:40.6]} 39. Bh5
{[%clk 0:00:55.1]} 39... Bb7+ {[%clk 0:01:39.8]} 40. Ke3 {[%clk 0:00:55.2]}
40... Ke5 {[%clk 0:01:39.6]} 41. Bf7 {[%clk 0:00:52.9]} 41... Be4 {[%clk
0:01:38.8]} 42. Be8 {[%clk 0:00:42.2]} 42... Bc2 {[%clk 0:01:38.1]} 43. Bb5
{[%clk 0:00:42.8]} 43... Bxb3 {[%clk 0:01:37.8]} 44. Kd3 {[%clk 0:00:40.6]}
44... Bd1 {[%clk 0:01:27.3]} 45. Ke3 {[%clk 0:00:39.8]} 45... Bc2 {[%clk
0:01:26.2]} 46. Kd2 {[%clk 0:00:39.1]} 46... Bf5 {[%clk 0:01:24.5]} 47. Ke3
{[%clk 0:00:40]} 47... Be4 {[%clk 0:01:23.5]} 48. Be8 {[%clk 0:00:35.9]} 48...
Bf5 {[%clk 0:01:00.5]} 49. Bb5 {[%clk 0:00:35.6]} 49... Be6 {[%clk 0:00:56]} 50.
Kd3 {[%clk 0:00:33.1]} 50... Kf5 {[%clk 0:00:55.4]} 51. Ke3 {[%clk 0:00:31.4]}
51... Kg4 {[%clk 0:00:54.3]} 52. Kf2 {[%clk 0:00:31.9]} 52... Bf5 {[%clk
0:00:52.1]} 53. Bc6 {[%clk 0:00:29.4]} 53... Be6 {[%clk 0:00:46.8]} 54. Bb5
{[%clk 0:00:21.9]} 54... Kf5 {[%clk 0:00:38.9]} 55. Ke3 {[%clk 0:00:21.6]} 55...
Ke5 {[%clk 0:00:39]} 56. Kd3 {[%clk 0:00:20.4]} 56... Bf7 {[%clk 0:00:36.7]} 57.
Ke3 {[%clk 0:00:20.6]} 57... Bg6 {[%clk 0:00:36.4]} 58. Bc6 {[%clk 0:00:20.1]}
58... Bf7 {[%clk 0:00:30.9]} 59. Bb5 {[%clk 0:00:20.5]} 59... Be6 {[%clk
0:00:30.9]} 1/2-1/2

[Event "*** Titled Tuesday Blitz"]
[Site "Chess.com"]
[Date "2020.11.03"]
[Round "6"]
[White "oogee"]
[Black "Evachess2006"]
[Result "1-0"]
[WhiteElo "2208"]
[BlackElo "1638"]
[TimeControl "180+1"]
[EndTime "11:10:45 PST"]
[Termination "oogee won on time"]

1. d4 {[%clk 0:02:58.9]} 1... d5 {[%clk 0:02:55.8]} 2. c4 {[%clk 0:02:55.7]}
2... dxc4 {[%clk 0:02:53.9]} 3. Nf3 {[%clk 0:02:54.2]} 3... Nf6 {[%clk
0:02:51.9]} 4. e3 {[%clk 0:02:52.4]} 4... e6 {[%clk 0:02:50.6]} 5. Bxc4 {[%clk
0:02:51.2]} 5... b6 {[%clk 0:02:47.6]} 6. O-O {[%clk 0:02:47.5]} 6... Bb7 {[%clk
0:02:48.5]} 7. Nc3 {[%clk 0:02:46]} 7... Nbd7 {[%clk 0:02:48.6]} 8. Qe2 {[%clk
0:02:44.7]} 8... Bb4 {[%clk 0:02:45.9]} 9. Rd1 {[%clk 0:02:42.3]} 9... O-O
{[%clk 0:02:43.8]} 10. Bd2 {[%clk 0:02:37.4]} 10... Qe7 {[%clk 0:02:38.6]} 11.
Be1 {[%clk 0:02:28.4]} 11... c5 {[%clk 0:02:19.1]} 12. a3 {[%clk 0:02:21.6]}
12... Bxc3 {[%clk 0:02:02.8]} 13. bxc3 {[%clk 0:02:19.2]} 13... cxd4 {[%clk
0:02:01.4]} 14. cxd4 {[%clk 0:02:17.2]} 14... Rac8 {[%clk 0:02:01.6]} 15. Bd3
{[%clk 0:02:16]} 15... Bxf3 {[%clk 0:01:52.1]} 16. Qxf3 {[%clk 0:02:09.6]} 16...
e5 {[%clk 0:01:53]} 17. Bb4 {[%clk 0:02:03.6]} 17... Nc5 {[%clk 0:01:38.4]} 18.
Qh3 {[%clk 0:01:47.7]} 18... a5 {[%clk 0:01:28.6]} 19. dxc5 {[%clk 0:01:38.4]}
19... axb4 {[%clk 0:01:26.1]} 20. axb4 {[%clk 0:01:37.5]} 20... bxc5 {[%clk
0:01:24.7]} 21. b5 {[%clk 0:01:36.8]} 21... e4 {[%clk 0:01:22.6]} 22. Be2 {[%clk
0:01:30.8]} 22... Rb8 {[%clk 0:01:04.5]} 23. Rdb1 {[%clk 0:01:28.5]} 23... Qd7
{[%clk 0:00:58.3]} 24. Qxd7 {[%clk 0:01:20.9]} 24... Nxd7 {[%clk 0:00:59.2]} 25.
Ra6 {[%clk 0:01:13.7]} 25... Nb6 {[%clk 0:00:55.7]} 26. f3 {[%clk 0:01:05.7]}
26... exf3 {[%clk 0:00:49.9]} 27. gxf3 {[%clk 0:01:05]} 27... Rfe8 {[%clk
0:00:46.1]} 28. Kf2 {[%clk 0:01:04]} 28... Kf8 {[%clk 0:00:39.3]} 29. Rc1 {[%clk
0:01:02.1]} 29... Rec8 {[%clk 0:00:36.3]} 30. f4 {[%clk 0:00:59.7]} 30... Ke7
{[%clk 0:00:33]} 31. Ra7+ {[%clk 0:00:58.7]} 31... Kf6 {[%clk 0:00:30.4]} 32.
Bg4 {[%clk 0:00:58.2]} 32... Ra8 {[%clk 0:00:21.3]} 33. Rb7 {[%clk 0:00:55]}
33... Rcb8 {[%clk 0:00:18.9]} 34. Rxb8 {[%clk 0:00:54]} 34... Rxb8 {[%clk
0:00:18.1]} 35. Rxc5 {[%clk 0:00:54.9]} 35... Na4 {[%clk 0:00:16.9]} 36. Rf5+
{[%clk 0:00:52.8]} 36... Kg6 {[%clk 0:00:16]} 37. Rg5+ {[%clk 0:00:47.5]} 37...
Kf6 {[%clk 0:00:15.5]} 38. Be2 {[%clk 0:00:45.4]} 38... h6 {[%clk 0:00:12.7]}
39. Rd5 {[%clk 0:00:44.4]} 39... Nc3 {[%clk 0:00:10.8]} 40. Rc5 {[%clk
0:00:41.2]} 40... Nxe2 {[%clk 0:00:09.6]} 41. Kxe2 {[%clk 0:00:40.9]} 41... Ke6
{[%clk 0:00:09.8]} 42. Kd3 {[%clk 0:00:40.5]} 42... Kd6 {[%clk 0:00:09.6]} 43.
Kc4 {[%clk 0:00:40]} 43... Rb6 {[%clk 0:00:07.6]} 44. e4 {[%clk 0:00:38.1]}
44... Rb8 {[%clk 0:00:06.4]} 45. Rc6+ {[%clk 0:00:36.9]} 45... Kd7 {[%clk
0:00:05.5]} 46. Kc5 {[%clk 0:00:36.6]} 46... Ra8 {[%clk 0:00:05.3]} 47. Ra6
{[%clk 0:00:33.4]} 47... Rc8+ {[%clk 0:00:04.7]} 48. Kd5 {[%clk 0:00:33.1]}
48... Rb8 {[%clk 0:00:03.6]} 49. b6 {[%clk 0:00:32.2]} 49... Re8 {[%clk
0:00:01.8]} 50. Ra7+ {[%clk 0:00:31.6]} 50... Kc8 {[%clk 0:00:01.6]} 51. Ra8+
{[%clk 0:00:31.4]} 1-0

[Event "*** Titled Tuesday Blitz"]
[Site "Chess.com"]
[Date "2020.11.03"]
[Round "6"]
[White "lukas_111111"]
[Black "lucachess49"]
[Result "0-1"]
[WhiteElo "2535"]
[BlackElo "2375"]
[TimeControl "180+1"]
[EndTime "11:10:46 PST"]
[Termination "lucachess49 won on time"]

1. d4 {[%clk 0:02:45.4]} 1... Nf6 {[%clk 0:02:59.6]} 2. c4 {[%clk 0:02:44.5]}
2... e6 {[%clk 0:02:59.2]} 3. Nf3 {[%clk 0:02:41.4]} 3... a6 {[%clk 0:02:58.9]}
4. Nc3 {[%clk 0:02:40.6]} 4... d5 {[%clk 0:02:58]} 5. cxd5 {[%clk 0:02:38.7]}
5... exd5 {[%clk 0:02:58.9]} 6. Bg5 {[%clk 0:02:38.7]} 6... Be6 {[%clk
0:02:59.3]} 7. Bxf6 {[%clk 0:02:38.7]} 7... Qxf6 {[%clk 0:02:59.1]} 8. Qb3
{[%clk 0:02:39.3]} 8... b5 {[%clk 0:02:56]} 9. g3 {[%clk 0:02:32.2]} 9... c6
{[%clk 0:02:49]} 10. h4 {[%clk 0:02:32]} 10... Bd6 {[%clk 0:02:43.4]} 11. Ng5
{[%clk 0:02:24.9]} 11... O-O {[%clk 0:02:18.4]} 12. e3 {[%clk 0:02:22.8]} 12...
Bg4 {[%clk 0:02:09.1]} 13. Be2 {[%clk 0:02:19.3]} 13... Bxe2 {[%clk 0:02:05.5]}
14. Nxe2 {[%clk 0:02:20.2]} 14... h6 {[%clk 0:02:05.6]} 15. Nh3 {[%clk
0:02:13.3]} 15... Qf3 {[%clk 0:02:03.8]} 16. Rg1 {[%clk 0:02:07.4]} 16... a5
{[%clk 0:02:01.2]} 17. a3 {[%clk 0:02:05.8]} 17... Nd7 {[%clk 0:01:42.8]} 18.
Qd1 {[%clk 0:01:58.5]} 18... Qf5 {[%clk 0:01:11.9]} 19. g4 {[%clk 0:01:54.8]}
19... Qe4 {[%clk 0:01:08.6]} 20. Ng3 {[%clk 0:01:49]} 20... Bxg3 {[%clk
0:01:03.6]} 21. Rxg3 {[%clk 0:01:49.9]} 21... Nb6 {[%clk 0:01:03.8]} 22. h5
{[%clk 0:01:03.1]} 22... Nc4 {[%clk 0:00:18.3]} 23. b3 {[%clk 0:01:02.7]} 23...
Nd6 {[%clk 0:00:17]} 24. Kf1 {[%clk 0:00:52.5]} 24... a4 {[%clk 0:00:16.5]} 25.
bxa4 {[%clk 0:00:49.1]} 25... Rxa4 {[%clk 0:00:17.4]} 26. Kg1 {[%clk 0:00:47.2]}
26... f6 {[%clk 0:00:12.9]} 27. Nf4 {[%clk 0:00:39.7]} 27... Rfa8 {[%clk
0:00:12.4]} 28. Qc1 {[%clk 0:00:36.1]} 28... Nc4 {[%clk 0:00:12.1]} 29. Ng6
{[%clk 0:00:15.9]} 29... Rxa3 {[%clk 0:00:10.7]} 30. Rb1 {[%clk 0:00:15.1]}
30... Ra2 {[%clk 0:00:08.5]} 31. Qe1 {[%clk 0:00:12.6]} 31... Rc2 {[%clk
0:00:08.1]} 32. Qb4 {[%clk 0:00:10.6]} 32... Re2 {[%clk 0:00:05.7]} 33. Rf1
{[%clk 0:00:10.1]} 33... Rb2 {[%clk 0:00:05.1]} 34. Qc5 {[%clk 0:00:09.7]} 34...
Qe6 {[%clk 0:00:05.5]} 35. Ne7+ {[%clk 0:00:09.3]} 35... Kh7 {[%clk 0:00:04.9]}
36. Nf5 {[%clk 0:00:08.3]} 36... Re8 {[%clk 0:00:04.8]} 37. Qa7 {[%clk
0:00:03.9]} 37... Rg8 {[%clk 0:00:04.7]} 38. Qc7 {[%clk 0:00:03]} 38... Nd2
{[%clk 0:00:04.3]} 39. Rd1 {[%clk 0:00:02.6]} 39... Ne4 {[%clk 0:00:04.6]} 40.
Rg2 {[%clk 0:00:03.1]} 40... Nc3 {[%clk 0:00:04.3]} 41. Rf1 {[%clk 0:00:02.6]}
41... b4 {[%clk 0:00:04.2]} 42. Qf4 {[%clk 0:00:02.1]} 42... Ne2+ {[%clk
0:00:03.8]} 0-1

[Event "*** Titled Tuesday Blitz"]
[Site "Chess.com"]
[Date "2020.11.03"]
[Round "6"]
[White "ChessWarrior7197"]
[Black "OldweakGM"]
[Result "1-0"]
[WhiteElo "3015"]
[BlackElo "2901"]
[TimeControl "180+1"]
[EndTime "11:10:47 PST"]
[Termination "ChessWarrior7197 won on time"]

1. e4 {[%clk 0:03:00.9]} 1... c6 {[%clk 0:03:00]} 2. d4 {[%clk 0:03:00.5]} 2...
d5 {[%clk 0:03:00.7]} 3. exd5 {[%clk 0:03:00.4]} 3... cxd5 {[%clk 0:03:00.9]} 4.
Bd3 {[%clk 0:03:01]} 4... Nc6 {[%clk 0:03:01]} 5. c3 {[%clk 0:03:00.9]} 5... Qc7
{[%clk 0:02:58.8]} 6. Ne2 {[%clk 0:03:00.1]} 6... Bg4 {[%clk 0:02:58.8]} 7. O-O
{[%clk 0:03:00.6]} 7... e6 {[%clk 0:02:57.8]} 8. Qe1 {[%clk 0:02:52.7]} 8... Nf6
{[%clk 0:02:45.9]} 9. f3 {[%clk 0:02:52.2]} 9... Bh5 {[%clk 0:02:44.6]} 10. Qh4
{[%clk 0:02:52.8]} 10... Bg6 {[%clk 0:02:36.9]} 11. Bxg6 {[%clk 0:02:52.4]}
11... fxg6 {[%clk 0:02:37.3]} 12. Nf4 {[%clk 0:02:52.3]} 12... Kf7 {[%clk
0:02:35.8]} 13. Nh3 {[%clk 0:02:52.8]} 13... Re8 {[%clk 0:02:32]} 14. Bf4 {[%clk
0:02:49.3]} 14... Qb6 {[%clk 0:02:25.8]} 15. Qf2 {[%clk 0:02:48]} 15... e5
{[%clk 0:02:17.4]} 16. Be3 {[%clk 0:02:36.5]} 16... exd4 {[%clk 0:02:17.4]} 17.
cxd4 {[%clk 0:02:36.3]} 17... Rxe3 {[%clk 0:01:43]} 18. Qxe3 {[%clk 0:02:34.4]}
18... Nxd4 {[%clk 0:01:43.6]} 19. Kh1 {[%clk 0:02:04.6]} 19... Nc2 {[%clk
0:01:41.3]} 20. Ng5+ {[%clk 0:01:55.5]} 20... Kg8 {[%clk 0:01:40.9]} 21. Qxb6
{[%clk 0:01:52.4]} 21... axb6 {[%clk 0:01:40.5]} 22. Nc3 {[%clk 0:01:45.7]}
22... Nxa1 {[%clk 0:01:40.5]} 23. Rxa1 {[%clk 0:01:46.6]} 23... h6 {[%clk
0:01:40.3]} 24. Ne6 {[%clk 0:01:46]} 24... Kf7 {[%clk 0:01:31.3]} 25. Nf4 {[%clk
0:01:35.5]} 25... Bd6 {[%clk 0:01:13.6]} 26. Nfxd5 {[%clk 0:01:33.5]} 26... Nxd5
{[%clk 0:01:14]} 27. Nxd5 {[%clk 0:01:34.4]} 27... Rc8 {[%clk 0:01:14.3]} 28.
Nxb6 {[%clk 0:01:14]} 28... Rc2 {[%clk 0:01:13.6]} 29. g3 {[%clk 0:01:14.1]}
29... Be5 {[%clk 0:00:56.4]} 30. Rd1 {[%clk 0:01:11.5]} 30... Bxb2 {[%clk
0:00:49.6]} 31. Rd7+ {[%clk 0:01:06.8]} 31... Ke6 {[%clk 0:00:47.1]} 32. Rxb7
{[%clk 0:01:07.3]} 32... Bd4 {[%clk 0:00:47.2]} 33. a4 {[%clk 0:01:04.8]} 33...
Rb2 {[%clk 0:00:37]} 34. a5 {[%clk 0:01:04.8]} 34... Rb5 {[%clk 0:00:24.4]} 35.
Ra7 {[%clk 0:00:52.3]} 35... Rb2 {[%clk 0:00:16.5]} 36. Ra8 {[%clk 0:00:48.2]}
36... h5 {[%clk 0:00:15.3]} 37. Nc4 {[%clk 0:00:38.6]} 37... Ra2 {[%clk
0:00:15.6]} 38. f4 {[%clk 0:00:33.7]} 38... Kf5 {[%clk 0:00:15]} 39. Rd8 {[%clk
0:00:25.4]} 39... Ke4 {[%clk 0:00:15.1]} 40. h4 {[%clk 0:00:18.9]} 40... Bc5
{[%clk 0:00:11.8]} 41. Nd2+ {[%clk 0:00:16.6]} 41... Ke3 {[%clk 0:00:10.6]} 42.
Nb3 {[%clk 0:00:16.9]} 42... Bb4 {[%clk 0:00:08.3]} 43. Kg1 {[%clk 0:00:16]}
43... Kf3 {[%clk 0:00:07.4]} 44. Rd3+ {[%clk 0:00:15.7]} 44... Ke2 {[%clk
0:00:07.3]} 45. Nc1+ {[%clk 0:00:15]} 1-0

[Event "*** Titled Tuesday Blitz"]
[Site "Chess.com"]
[Date "2020.11.03"]
[Round "6"]
[White "Smile2005"]
[Black "ajdemipopushi"]
[Result "1-0"]
[WhiteElo "2304"]
[BlackElo "2373"]
[TimeControl "180+1"]
[EndTime "11:10:47 PST"]
[Termination "Smile2005 won on time"]

1. Nf3 {[%clk 0:02:59.4]} 1... c5 {[%clk 0:02:59.8]} 2. g3 {[%clk 0:03:00.3]}
2... g6 {[%clk 0:03:00.2]} 3. Bg2 {[%clk 0:03:01.2]} 3... Bg7 {[%clk 0:03:00.9]}
4. O-O {[%clk 0:03:01.6]} 4... Nc6 {[%clk 0:03:01.6]} 5. d3 {[%clk 0:03:01.9]}
5... e6 {[%clk 0:03:01.7]} 6. e4 {[%clk 0:03:01.7]} 6... Nge7 {[%clk 0:03:01.7]}
7. Nc3 {[%clk 0:03:02]} 7... O-O {[%clk 0:03:01.3]} 8. Be3 {[%clk 0:03:02.5]}
8... Nd4 {[%clk 0:03:01.2]} 9. Qd2 {[%clk 0:03:02.2]} 9... Nec6 {[%clk
0:02:55.3]} 10. Ne1 {[%clk 0:03:00.3]} 10... d6 {[%clk 0:02:23.8]} 11. Nd1
{[%clk 0:02:59.6]} 11... e5 {[%clk 0:02:20.3]} 12. a4 {[%clk 0:02:59.2]} 12...
f5 {[%clk 0:02:07.4]} 13. c3 {[%clk 0:02:58.3]} 13... Ne6 {[%clk 0:02:07.2]} 14.
exf5 {[%clk 0:02:58]} 14... Rxf5 {[%clk 0:01:53.2]} 15. a5 {[%clk 0:02:53.6]}
15... Nxa5 {[%clk 0:01:37.3]} 16. b4 {[%clk 0:02:45.4]} 16... cxb4 {[%clk
0:01:27.2]} 17. cxb4 {[%clk 0:02:42.9]} 17... Nc6 {[%clk 0:01:26.8]} 18. b5
{[%clk 0:02:42.6]} 18... Ncd4 {[%clk 0:01:25.4]} 19. Nc3 {[%clk 0:02:41.6]}
19... Kh8 {[%clk 0:01:19.4]} 20. Rb1 {[%clk 0:02:16.8]} 20... Rb8 {[%clk
0:01:13.8]} 21. Nd5 {[%clk 0:02:08.8]} 21... b6 {[%clk 0:01:10.1]} 22. Nb4
{[%clk 0:02:05.9]} 22... Bb7 {[%clk 0:01:04.4]} 23. Nc6 {[%clk 0:02:06.2]} 23...
Bxc6 {[%clk 0:00:59.1]} 24. bxc6 {[%clk 0:02:07.1]} 24... Rc8 {[%clk 0:00:55.7]}
25. Bh3 {[%clk 0:02:04.4]} 25... Rxc6 {[%clk 0:00:46.2]} 26. Bxd4 {[%clk
0:02:02.4]} 26... Nxd4 {[%clk 0:00:44.7]} 27. Bxf5 {[%clk 0:02:02.2]} 27... gxf5
{[%clk 0:00:44.6]} 28. Qd1 {[%clk 0:01:15.8]} 28... Qa8 {[%clk 0:00:36.7]} 29.
f3 {[%clk 0:01:12.5]} 29... d5 {[%clk 0:00:29.9]} 30. Rf2 {[%clk 0:01:10.2]}
30... Qc8 {[%clk 0:00:27.9]} 31. Kh1 {[%clk 0:01:07.8]} 31... a5 {[%clk
0:00:26.6]} 32. f4 {[%clk 0:01:05.7]} 32... e4 {[%clk 0:00:25.3]} 33. dxe4
{[%clk 0:01:04.9]} 33... fxe4 {[%clk 0:00:25.1]} 34. f5 {[%clk 0:01:04.1]} 34...
Be5 {[%clk 0:00:13.6]} 35. Ng2 {[%clk 0:01:01.7]} 35... Kg7 {[%clk 0:00:09.8]}
36. Ne3 {[%clk 0:00:59.5]} 36... Qd7 {[%clk 0:00:08]} 37. Ng4 {[%clk 0:00:57.5]}
37... Qd6 {[%clk 0:00:06.6]} 38. f6+ {[%clk 0:00:46.5]} 38... Kf8 {[%clk
0:00:05.5]} 39. Qd2 {[%clk 0:00:34.8]} 39... Rc7 {[%clk 0:00:04.1]} 40. Qh6+
{[%clk 0:00:31.3]} 40... Ke8 {[%clk 0:00:04.1]} 41. Nxe5 {[%clk 0:00:18.4]}
41... Qxe5 {[%clk 0:00:03.8]} 42. Rxb6 {[%clk 0:00:18.9]} 42... e3 {[%clk
0:00:01.4]} 43. Rb8+ {[%clk 0:00:18.3]} 1-0